fUST/lending_fUST_20250716
["ID","MTS","AMOUNT","RATE_DAILY","PERIOD"]
[372445512,1752647439571,-460.0,0.00019178,2]
[372445514,1752647439580,-660.68,0.00019178,2]
[372445516,1752647439590,-460.0,0.00019178,2]
[372445518,1752647439599,-1639.91,0.00019178,2]
[372445520,1752647439608,-3626.51,0.00019178,2]
[372445522,1752647439618,-460.0,0.00019178,2]
[372445524,1752647439628,-524.47025457,0.00019178,2]
[372445525,1752647439637,-460.0,0.00019178,2]
[372445527,1752647439647,-902.07,0.00019178,2]
[372445529,1752647439659,-460.0,0.00019178,2]
[372445531,1752647439669,-500.0,0.00019178,2]
[372445533,1752647439680,-1322.42,0.00019178,2]
[372445536,1752647439690,-460.0,0.00019178,2]
[372445538,1752647439700,-1087.59,0.00019178,2]
[372445539,1752647439710,-892.06,0.00019178,2]
[372445542,1752647439720,-460.0,0.00019178,2]
[372445543,1752647439730,-460.0,0.00019178,2]
[372445545,1752647439740,-460.0,0.00019178,2]
[372445547,1752647439751,-460.0,0.00019178,2]
[372445549,1752647439760,-467.41780732,0.00019178,2]
[372445551,1752647439770,-460.0,0.00019178,2]
[372445553,1752647439780,-2566.41,0.00019178,2]
[372445556,1752647439790,-460.0,0.00019178,2]
[372445558,1752647439801,-377.72524414,0.00019178,2]
[372445560,1752647439810,-460.0,0.00019178,2]
[372445562,1752647439820,-944.71,0.00019178,2]
[372445563,1752647439830,-871.34,0.00019178,2]
[372445565,1752647439840,-460.0,0.00019178,2]
[372445568,1752647439850,-460.0,0.00019178,2]
[372445570,1752647439859,-460.0,0.00019178,2]
[372445571,1752647439868,-460.0,0.00019178,2]
[372445573,1752647439878,-460.0,0.00019178,2]
[372445575,1752647439887,-460.0,0.00019178,2]
[372445577,1752647439897,-460.0,0.00019178,2]
[372445579,1752647439907,-460.0,0.00019178,2]
[372445581,1752647439915,-460.0,0.00019178,2]
[372445584,1752647439926,-460.91033082,0.00019178,2]
[372445586,1752647439936,-460.0,0.00019178,2]
[372445587,1752647439946,-460.0,0.00019178,2]
[372445590,1752647439956,-460.0,0.00019178,2]
[372445591,1752647439966,-460.0,0.00019178,2]
[372445594,1752647439976,-460.0,0.00019178,2]
[372445595,1752647439985,-460.0,0.00019178,2]
[372445597,1752647439994,-458.58693911,0.00019178,2]
[372445599,1752647440004,-460.0,0.00019178,2]
[372445601,1752647440013,-167.5861435,0.00019178,2]
[372445603,1752647440023,-329.97049095,0.00019205,5]
[372445605,1752647440032,-409.87788362,0.00019351,2]
[372445607,1752647440042,-500.0,0.00019351,2]
[372445609,1752647440051,-218.02318379,0.00019351,2]
[372445611,1752647440061,-10394.48832007,0.00019352,2]
[372445613,1752647440071,-460.12,0.00019442,3]
[372445615,1752647440080,-230.06,0.00019442,3]
[372445617,1752647440089,-690.2,0.00019442,3]
[372445619,1752647440099,-460.0,0.00019451,2]
[372445621,1752647440108,-460.0,0.00019451,2]
[372445623,1752647440117,-460.0,0.00019451,2]
[372445625,1752647440127,-460.0,0.00019451,2]
[372445627,1752647440136,-461.77044282,0.00019451,2]
[372445629,1752647440146,-460.0,0.00019451,2]
[372445631,1752647440156,-460.0,0.00019451,2]
[372445633,1752647440165,-400.40905759,0.00019451,2]
[372445635,1752647440176,-460.0,0.00019451,2]
[372445637,1752647440185,-460.0,0.00019452,2]
[372445639,1752647440194,-460.0,0.00019452,2]
[372445641,1752647440205,-460.0,0.00019452,2]
[372445643,1752647440214,-460.0,0.00019452,2]
[372445645,1752647440223,-460.0,0.00019452,2]
[372445647,1752647440233,-462.32570826,0.00019452,2]
[372445649,1752647440242,-460.0,0.00019452,2]
[372445651,1752647440251,-460.0,0.00019452,2]
[372445653,1752647440261,-460.0,0.00019452,2]
[372445655,1752647440270,-244.06028957,0.00019452,2]
[372445657,1752647440279,-462.61617131,0.00019452,2]
[372445659,1752647440288,-460.0,0.00019452,2]
[372445661,1752647440297,-460.0,0.00019452,2]
[372445663,1752647440307,-460.0,0.00019452,2]
[372445665,1752647440316,-460.0,0.00019452,2]
[372445667,1752647440325,-460.0,0.00019452,2]
[372445669,1752647440336,-460.0,0.00019452,2]
[372445671,1752647440345,-460.0,0.00019452,2]
[372445673,1752647440355,-460.0,0.00019452,2]
[372445675,1752647440364,-460.0,0.00019452,2]
[372445677,1752647440374,-179.13458767,0.00019452,2]
[372445679,1752647440383,-460.0,0.00019452,2]
[372445681,1752647440393,-460.0,0.00019452,2]
[372445683,1752647440403,-460.0,0.00019452,2]
[372445685,1752647440413,-460.0,0.00019452,2]
[372445687,1752647440422,-460.0,0.00019452,2]
[372445689,1752647440432,-460.0,0.00019452,2]
[372445691,1752647440442,-520.97,0.00019452,2]
[372445693,1752647440452,-460.0,0.00019452,2]
[372445695,1752647440461,-460.0,0.00019452,2]
[372445697,1752647440471,-460.0,0.00019452,2]
[372445699,1752647440481,-363.79751571,0.00019452,2]
[372445701,1752647440491,-3301.57,0.00019452,2]
[372445703,1752647440500,-282.06522617,0.00019452,2]
[372445705,1752647440510,-849.33,0.00019452,2]
[372445707,1752647440520,-460.0,0.00019452,2]
[372445709,1752647440529,-1283.73,0.00019452,2]
[372445711,1752647440539,-460.0,0.00019452,2]
[372445713,1752647440557,-460.0,0.00019452,2]
[372445715,1752647440570,-460.0,0.00019452,2]
[372445717,1752647440579,-460.0,0.00019452,2]
[372445719,1752647440589,-460.0,0.00019452,2]
[372445721,1752647440598,-460.0,0.00019452,2]
[372445723,1752647440607,-460.0,0.00019452,2]
[372445725,1752647440616,-660.68,0.00019452,2]
[372445727,1752647440626,-316.14,0.00019452,2]
[372445729,1752647440635,-1639.91,0.00019452,2]
[372445731,1752647440645,-3626.51,0.00019452,2]
[372445732,1752647440654,-460.0,0.00019452,2]
[372445735,1752647440664,-546.19769828,0.00019452,2]
[372445736,1752647440674,-902.07,0.00019452,2]
[372445738,1752647440683,-460.0,0.00019452,2]
[372445740,1752647440693,-1322.42,0.00019452,2]
[372445742,1752647440703,-1087.59,0.00019452,2]
[372445745,1752647440712,-892.06,0.00019452,2]
[372445747,1752647440721,-456.03483581,0.00019452,2]
[372445749,1752647440730,-460.0,0.00019452,2]
[372445751,1752647440740,-2566.41,0.00019452,2]
[372445752,1752647440749,-460.0,0.00019452,2]
[372445755,1752647440758,-944.71,0.00019452,2]
[372445757,1752647440769,-871.34,0.00019452,2]
[372445759,1752647440779,-460.0,0.00019452,2]
[372445761,1752647440788,-460.0,0.00019452,2]
[372445763,1752647440798,-460.0,0.00019452,2]
[372445764,1752647440807,-460.0,0.00019452,2]
[372445767,1752647440817,-460.0,0.00019452,2]
[372445768,1752647440827,-460.0,0.00019452,2]
[372445770,1752647440836,-460.0,0.00019452,2]
[372445772,1752647440846,-460.0,0.00019452,2]
[372445775,1752647440855,-1128.22,0.000195,2]
[372445777,1752647440865,-513.70247026,0.00019721,2]
[372445778,1752647440875,-1000.0,0.00019721,2]
[372445781,1752647440884,-460.0,0.00019725,2]
[372445782,1752647440894,-461.11871174,0.00019725,2]
[372445785,1752647440903,-460.86978411,0.00019725,2]
[372445787,1752647440913,-460.0,0.00019725,2]
[372445789,1752647440923,-460.0,0.00019725,2]
[372445791,1752647440932,-460.0,0.00019725,2]
[372445793,1752647440942,-544.57,0.00019725,2]
[372445795,1752647440951,-460.0,0.00019726,2]
[372445796,1752647440960,-460.0,0.00019726,2]
[372445798,1752647440970,-460.0,0.00019726,2]
[372445801,1752647440980,-460.0,0.00019726,2]
[372445803,1752647440989,-460.0,0.00019726,2]
[372445805,1752647440999,-378.9,0.00019726,2]
[372445807,1752647441008,-460.0,0.00019726,2]
[372445809,1752647441018,-460.0,0.00019726,2]
[372445811,1752647441027,-546.18586568,0.00019726,2]
[372445813,1752647441036,-460.0,0.00019726,2]
[372445815,1752647441046,-347.70449755,0.00019726,2]
[372445817,1752647441055,-460.0,0.00019726,2]
[372445819,1752647441066,-423.08,0.00019726,2]
[372445821,1752647441076,-460.0,0.00019726,2]
[372445823,1752647441085,-460.0,0.00019726,2]
[372445825,1752647441095,-460.0,0.00019726,2]
[372445827,1752647441104,-460.0,0.00019726,2]
[372445829,1752647441114,-520.97,0.00019726,2]
[372445831,1752647441124,-460.0,0.00019726,2]
[372445833,1752647441134,-460.0,0.00019726,2]
[372445835,1752647441144,-480.44803317,0.00019726,2]
[372445837,1752647441154,-3301.57,0.00019726,2]
[372445839,1752647441163,-849.33,0.00019726,2]
[372445841,1752647441173,-460.0,0.00019726,2]
[372445843,1752647441183,-1283.73,0.00019726,2]
[372445845,1752647441194,-460.0,0.00019726,2]
[372445847,1752647441204,-460.0,0.00019726,2]
[372445849,1752647441213,-460.0,0.00019726,2]
[372445851,1752647441223,-607.51,0.00019726,2]
[372445853,1752647441232,-460.0,0.00019726,2]
[372445855,1752647441242,-460.0,0.00019726,2]
[372445857,1752647441251,-460.0,0.00019726,2]
[372445859,1752647441261,-660.68,0.00019726,2]
[372445861,1752647441270,-1639.91,0.00019726,2]
[372445863,1752647441280,-3626.51,0.00019726,2]
[372445865,1752647441289,-285.02,0.00019726,2]
[372445867,1752647441298,-902.07,0.00019726,2]
[372445869,1752647441308,-460.0,0.00019726,2]
[372445871,1752647441317,-1322.42,0.00019726,2]
[372445873,1752647441327,-1087.59,0.00019726,2]
[372445875,1752647441336,-892.06,0.00019726,2]
[372445877,1752647441345,-2566.41,0.00019726,2]
[372445879,1752647441355,-460.0,0.00019726,2]
[372445892,1752647441467,-944.71,0.00019726,2]
[372445894,1752647441477,-871.34,0.00019726,2]
[372445896,1752647441486,-460.0,0.00019726,2]
[372445898,1752647441496,-460.0,0.00019726,2]
[372445900,1752647441506,-460.0,0.00019726,2]
[372445902,1752647441515,-460.0,0.00019726,2]
[372445903,1752647441525,-460.0,0.00019726,2]
[372445904,1752647441535,-460.0,0.00019726,2]
[372445905,1752647441545,-500.0,0.00019952,2]
[372445906,1752647441555,-460.0,0.00019999,2]
[372445907,1752647441564,-460.0,0.00019999,2]
[372445908,1752647441574,-389.10728305,0.00019999,2]
[372445909,1752647441584,-460.0,0.0002,2]
[372445910,1752647441594,-460.0,0.0002,2]
[372445911,1752647441603,-460.0,0.0002,2]
[372445912,1752647441613,-468.76620667,0.0002,2]
[372445913,1752647441623,-460.0,0.0002,2]
[372445914,1752647441632,-460.0,0.0002,2]
[372445915,1752647441643,-460.0,0.0002,2]
[372445916,1752647441655,-460.0,0.0002,2]
[372445917,1752647441664,-460.0,0.0002,2]
[372445918,1752647441674,-460.0,0.0002,2]
[372445919,1752647441683,-520.97,0.0002,2]
[372445920,1752647441695,-460.0,0.0002,2]
[372445921,1752647441704,-417.33380105,0.0002,2]
[372445922,1752647441714,-3301.57,0.0002,2]
[372445923,1752647441724,-849.33,0.0002,2]
[372445924,1752647441734,-451.90628207,0.0002,2]
[372445925,1752647441744,-1283.73,0.0002,2]
[372445926,1752647441753,-460.0,0.0002,2]
[372445927,1752647441762,-460.0,0.0002,2]
[372445928,1752647441771,-460.0,0.0002,2]
[372445929,1752647441780,-460.0,0.0002,2]
[372445931,1752647441790,-460.0,0.0002,2]
[372445933,1752647441800,-460.0,0.0002,2]
[372445935,1752647441809,-660.68,0.0002,2]
[372445937,1752647441819,-1639.91,0.0002,2]
[372445939,1752647441828,-3626.51,0.0002,2]
[372445941,1752647441838,-902.07,0.0002,2]
[372445943,1752647441847,-460.0,0.0002,2]
[372445945,1752647441856,-1322.42,0.0002,2]
[372445947,1752647441866,-1087.59,0.0002,2]
[372445949,1752647441875,-892.06,0.0002,2]
[372445951,1752647441884,-2566.41,0.0002,2]
[372445953,1752647441894,-460.0,0.0002,2]
[372445955,1752647441903,-944.71,0.0002,2]
[372445957,1752647441913,-871.34,0.0002,2]
[372445959,1752647441922,-460.0,0.0002,2]
[372445961,1752647441934,-460.0,0.0002,2]
[372445963,1752647441943,-460.0,0.0002,2]
[372445965,1752647441954,-460.0,0.0002,2]
[372445967,1752647441963,-460.0,0.0002,2]
[372445968,1752647441972,-460.0,0.0002,2]
[372445970,1752647441981,-384.292518,0.00020187,2]
[372445973,1752647441991,-361.89721408,0.00020195,2]
[372445974,1752647442000,-508.31740381,0.00020268,2]
[372445976,1752647442010,-526.89532737,0.00020273,2]
[372445978,1752647442019,-460.0,0.00020273,2]
[372445980,1752647442029,-460.0,0.00020273,2]
[372445982,1752647442038,-460.0,0.00020273,2]
[372445984,1752647442048,-460.0,0.00020273,2]
[372445986,1752647442059,-460.0,0.00020273,2]
[372445988,1752647442070,-460.0,0.00020273,2]
[372445990,1752647442079,-544.0961383,0.00020273,2]
[372445992,1752647442097,-520.97,0.00020273,2]
[372445994,1752647442106,-460.0,0.00020273,2]
[372445996,1752647442119,-3301.57,0.00020273,2]
[372445998,1752647442134,-849.33,0.00020273,2]
[372446000,1752647442145,-1283.73,0.00020273,2]
[372446002,1752647442160,-460.0,0.00020273,2]
[372446004,1752647442170,-460.0,0.00020273,2]
[372446006,1752647442180,-460.0,0.00020273,2]
[372446008,1752647442190,-460.0,0.00020273,2]
[372446010,1752647442199,-460.0,0.00020273,2]
[372446012,1752647442209,-269.93,0.00020273,2]
[372446014,1752647442219,-660.68,0.00020273,2]
[372446016,1752647442228,-1639.91,0.00020273,2]
[372446018,1752647442238,-3626.51,0.00020273,2]
[372446020,1752647442247,-902.07,0.00020273,2]
[372446022,1752647442257,-460.0,0.00020273,2]
[372446024,1752647442266,-1322.42,0.00020273,2]
[372446026,1752647442275,-1087.59,0.00020273,2]
[372446028,1752647442285,-892.06,0.00020273,2]
[372446030,1752647442294,-2566.41,0.00020273,2]
[372446032,1752647442303,-460.0,0.00020273,2]
[372446034,1752647442313,-944.71,0.00020273,2]
[372446036,1752647442322,-871.34,0.00020273,2]
[372446038,1752647442332,-460.0,0.00020273,2]
[372446040,1752647442342,-460.0,0.00020273,2]
[372446042,1752647442351,-460.0,0.00020273,2]
[372446044,1752647442362,-460.0,0.00020273,2]
[372446046,1752647442372,-460.0,0.00020273,2]
[372446048,1752647442382,-268.5902745,0.00020499,2]
[372446050,1752647442392,-260.0,0.00020543,2]
[372446052,1752647442401,-460.0,0.00020547,2]
[372446054,1752647442411,-460.0,0.00020547,2]
[372446056,1752647442421,-460.0,0.00020547,2]
[372446058,1752647442432,-460.0,0.00020547,2]
[372446060,1752647442442,-460.0,0.00020547,2]
[372446062,1752647442452,-520.97,0.00020547,2]
[372446064,1752647442462,-460.0,0.00020547,2]
[372446066,1752647442472,-3301.57,0.00020547,2]
[372446068,1752647442481,-849.33,0.00020547,2]
[372446070,1752647442491,-1283.73,0.00020547,2]
[372446072,1752647442500,-460.0,0.00020547,2]
[372446074,1752647442509,-460.0,0.00020547,2]
[372446076,1752647442518,-460.0,0.00020547,2]
[372446078,1752647442527,-460.0,0.00020547,2]
[372446080,1752647442537,-460.0,0.00020547,2]
[372446082,1752647442546,-660.68,0.00020547,2]
[372446084,1752647442555,-1639.91,0.00020547,2]
[372446085,1752647442565,-3626.51,0.00020547,2]
[372446087,1752647442575,-902.07,0.00020547,2]
[372446089,1752647442584,-332.22804198,0.00020547,2]
[372446092,1752647442594,-1322.42,0.00020547,2]
[372446093,1752647442603,-1087.59,0.00020547,2]
[372446095,1752647442613,-892.06,0.00020547,2]
[372446097,1752647442623,-2566.41,0.00020547,2]
[372446099,1752647442632,-460.0,0.00020547,2]
[372446101,1752647442642,-944.71,0.00020547,2]
[372446103,1752647442651,-871.34,0.00020547,2]
[372446105,1752647442661,-460.0,0.00020547,2]
[372446107,1752647442670,-460.0,0.00020547,2]
[372446109,1752647442679,-460.0,0.00020547,2]
[372446111,1752647442689,-460.0,0.00020547,2]
[372446113,1752647442699,-160.0,0.00020638,2]
[372446115,1752647442708,-160.0,0.00020638,2]
[372446117,1752647442719,-468.75,0.00020638,2]
[372446119,1752647442728,-160.0,0.00020638,2]
[372446121,1752647442737,-230.8109288,0.00020638,2]
[372446123,1752647442747,-160.0,0.00020638,2]
[372446125,1752647442757,-12605.49131908,0.00020638,2]
[372446127,1752647442768,-160.0,0.00020638,2]
[372446129,1752647442778,-160.0,0.00020638,2]
[372446131,1752647442788,-215.5496034,0.00020638,2]
[372446133,1752647442799,-160.0,0.00020638,2]
[372446135,1752647442810,-520.85416667,0.00020638,2]
[372446137,1752647442820,-214.40824756,0.00020638,2]
[372446139,1752647442830,-1907.9370042,0.00020721,2]
[372446141,1752647442840,-6552.40895527,0.00020739,2]
[372446143,1752647442850,-1388.35,0.000208,2]
[372446145,1752647442861,-920.24,0.00020812,3]
[372446147,1752647442870,-460.12,0.00020812,3]
[372446149,1752647442880,-363.01,0.00020821,2]
[372446151,1752647442890,-460.0,0.00020821,2]
[372446153,1752647442901,-460.0,0.00020821,2]
[372446155,1752647442911,-520.97,0.00020821,2]
[372446157,1752647442920,-460.0,0.00020821,2]
[372446159,1752647442930,-3301.57,0.00020821,2]
[372446162,1752647442940,-849.33,0.00020821,2]
[372446164,1752647442950,-1283.73,0.00020821,2]
[372446166,1752647442960,-460.0,0.00020821,2]
[372446168,1752647442971,-460.0,0.00020821,2]
[372446170,1752647442981,-460.0,0.00020821,2]
[372446172,1752647442991,-460.0,0.00020821,2]
[372446174,1752647443000,-460.0,0.00020821,2]
[372446176,1752647443009,-660.68,0.00020821,2]
[372446178,1752647443019,-1639.91,0.00020821,2]
[372446181,1752647443028,-3626.51,0.00020821,2]
[372446183,1752647443038,-902.07,0.00020821,2]
[372446185,1752647443047,-1322.42,0.00020821,2]
[372446187,1752647443056,-1087.59,0.00020821,2]
[372446188,1752647443066,-892.06,0.00020821,2]
[372446190,1752647443075,-2566.41,0.00020821,2]
[372446192,1752647443084,-460.0,0.00020821,2]
[372446194,1752647443093,-944.71,0.00020821,2]
[372446196,1752647443102,-871.34,0.00020821,2]
[372446198,1752647443112,-460.0,0.00020821,2]
[372446200,1752647443122,-460.0,0.00020821,2]
[372446202,1752647443131,-460.0,0.00020821,2]
[372446204,1752647443140,-460.0,0.00020821,2]
[372446205,1752647443150,-1680.0,0.00020897,2]
[372446207,1752647443159,-420.0,0.00020898,2]
[372446209,1752647443168,-249.84316173,0.000209,2]
[372446211,1752647443178,-160.0,0.00020913,2]
[372446213,1752647443188,-501.32843351,0.00020973,2]
[372446215,1752647443197,-501.75506861,0.00020973,2]
[372446217,1752647443207,-500.0,0.00020973,2]
[372446219,1752647443216,-500.86413658,0.00020973,2]
[372446221,1752647443226,-500.0,0.00020973,2]
[372446223,1752647443235,-500.0,0.00020973,2]
[372446225,1752647443245,-374.74725331,0.00020973,2]
[372446227,1752647443255,-500.0,0.00020973,2]
[372446229,1752647443264,-504.14347637,0.00020973,2]
[372446231,1752647443274,-504.38077274,0.00020973,2]
[372446233,1752647443283,-443.04809324,0.00020973,2]
[372446235,1752647443293,-502.71250019,0.00020973,2]
[372446237,1752647443303,-500.0,0.00020973,2]
[372446239,1752647443312,-720.0,0.00020999,2]
[372446241,1752647443321,-10000.0,0.00021,5]
[372446243,1752647443329,-3920.39356113,0.00021,2]
[372446244,1752647443338,-269.95567869,0.00021,2]
[372446246,1752647443348,-169.10995551,0.00021,10]
[372446248,1752647443357,-158861.64721088,0.00021,3]
[372446250,1752647443367,-780.0,0.00021,2]
[372446252,1752647443377,-281.819,0.00021024,2]
[372446254,1752647443387,-178.3908234,0.00021024,2]
[372446256,1752647443396,-460.0,0.00021095,2]
[372446258,1752647443406,-520.97,0.00021095,2]
[372446260,1752647443416,-460.0,0.00021095,2]
[372446262,1752647443427,-3301.57,0.00021095,2]
[372446264,1752647443436,-849.33,0.00021095,2]
[372446266,1752647443445,-1283.73,0.00021095,2]
[372446268,1752647443455,-460.0,0.00021095,2]
[372446270,1752647443464,-518.43,0.00021095,2]
[372446272,1752647443473,-460.0,0.00021095,2]
[372446274,1752647443482,-460.0,0.00021095,2]
[372446276,1752647443492,-460.0,0.00021095,2]
[372446278,1752647443501,-660.68,0.00021095,2]
[372446280,1752647443510,-1639.91,0.00021095,2]
[372446281,1752647443519,-3626.51,0.00021095,2]
[372446283,1752647443528,-902.07,0.00021095,2]
[372446285,1752647443538,-1322.42,0.00021095,2]
[372446287,1752647443548,-1087.59,0.00021095,2]
[372446289,1752647443558,-892.06,0.00021095,2]
[372446291,1752647443567,-2566.41,0.00021095,2]
[372446293,1752647443576,-502.38471914,0.00021095,2]
[372446295,1752647443586,-944.71,0.00021095,2]
[372446297,1752647443596,-871.34,0.00021095,2]
[372446299,1752647443606,-460.0,0.00021095,2]
[372446301,1752647443616,-460.0,0.00021095,2]
[372446303,1752647443625,-460.0,0.00021095,2]
[372446305,1752647443635,-460.0,0.00021095,2]
[372446307,1752647443644,-283.0,0.00021282,2]
[372446309,1752647443656,-575.77611363,0.00021369,2]
[372446311,1752647443666,-520.97,0.00021369,2]
[372446313,1752647443675,-460.0,0.00021369,2]
[372446315,1752647443685,-3301.57,0.00021369,2]
[372446316,1752647443694,-849.33,0.00021369,2]
[372446318,1752647443703,-1283.73,0.00021369,2]
[372446320,1752647443713,-460.0,0.00021369,2]
[372446322,1752647443722,-460.0,0.00021369,2]
[372446324,1752647443732,-460.0,0.00021369,2]
[372446326,1752647443742,-460.0,0.00021369,2]
[372446328,1752647443751,-660.68,0.00021369,2]
[372446330,1752647443762,-1639.91,0.00021369,2]
[372446332,1752647443772,-3626.51,0.00021369,2]
[372446334,1752647443782,-902.07,0.00021369,2]
[372446336,1752647443792,-1322.42,0.00021369,2]
[372446338,1752647443801,-1087.59,0.00021369,2]
[372446340,1752647443811,-892.06,0.00021369,2]
[372446342,1752647443820,-2566.41,0.00021369,2]
[372446344,1752647443830,-944.71,0.00021369,2]
[372446346,1752647443840,-871.34,0.00021369,2]
[372446348,1752647443849,-460.0,0.00021369,2]
[372446350,1752647443858,-460.0,0.00021369,2]
[372446352,1752647443868,-460.0,0.00021369,2]
[372446354,1752647443877,-460.0,0.00021369,2]
[372446356,1752647443887,-260.0,0.0002146,2]
[372446358,1752647443896,-1128.22,0.000215,2]
[372446360,1752647443906,-1000.0,0.00021521,2]
[372446362,1752647443915,-1004.00220653,0.00021521,2]
[372446364,1752647443924,-1000.0,0.00021521,2]
[372446365,1752647443935,-1000.0,0.00021521,2]
[372446367,1752647443945,-501.58314376,0.00021537,2]
[372446369,1752647443955,-500.0,0.00021537,2]
[372446371,1752647443965,-541.04910487,0.00021537,2]
[372446382,1752647444053,-182.81658657,0.00021537,2]
[372446384,1752647444074,-500.82141224,0.0002154,2]
[372446386,1752647444084,-471.55242615,0.0002154,2]
[372446388,1752647444095,-500.0,0.0002154,2]
[372446390,1752647444104,-520.97,0.00021643,2]
[372446392,1752647444114,-460.0,0.00021643,2]
[372446394,1752647444123,-3301.57,0.00021643,2]
[372446396,1752647444133,-849.33,0.00021643,2]
[372446398,1752647444142,-1283.73,0.00021643,2]
[372446400,1752647444151,-460.0,0.00021643,2]
[372446402,1752647444161,-460.0,0.00021643,2]
[372446404,1752647444170,-460.0,0.00021643,2]
[372446406,1752647444180,-460.0,0.00021643,2]
[372446408,1752647444190,-660.68,0.00021643,2]
[372446410,1752647444200,-1639.91,0.00021643,2]
[372446412,1752647444209,-3626.51,0.00021643,2]
[372446413,1752647444218,-902.07,0.00021643,2]
[372446414,1752647444227,-1322.42,0.00021643,2]
[372446415,1752647444236,-1087.59,0.00021643,2]
[372446416,1752647444245,-892.06,0.00021643,2]
[372446417,1752647444255,-317.37576485,0.00021643,2]
[372446641,1752647446497,-460.0,0.00019178,2]
[372446643,1752647446507,-460.0,0.00019178,2]
[372446646,1752647446516,-296.68949048,0.00019452,2]
[372446660,1752647446639,-163.31050952,0.00019452,2]
[372446661,1752647446654,-460.0,0.00019726,2]
[372446663,1752647446665,-460.0,0.0002,2]
[372446665,1752647446678,-562.18123122,0.00020001,2]
[372446668,1752647446687,-460.0,0.00020273,2]
[372446670,1752647446697,-460.0,0.00020547,2]
[372446672,1752647446707,-460.0,0.00020821,2]
[372446674,1752647446716,-562.18123122,0.00020925,2]
[372446675,1752647446726,-460.0,0.00021095,2]
[372446677,1752647446736,-460.0,0.00021369,2]
[372446679,1752647446745,-2249.03423515,0.00021643,2]
[372446682,1752647446755,-944.71,0.00021643,2]
[372446683,1752647446764,-871.34,0.00021643,2]
[372446685,1752647446774,-460.0,0.00021643,2]
[372446688,1752647446784,-460.0,0.00021643,2]
[372446690,1752647446793,-460.0,0.00021643,2]
[372446692,1752647446803,-460.0,0.00021643,2]
[372446693,1752647446813,-460.0,0.00021643,2]
[372446695,1752647446822,-500.0,0.00021686,2]
[372446697,1752647446831,-1907.93700417,0.00021741,2]
[372446699,1752647446840,-520.97,0.00021917,2]
[372446701,1752647446849,-348.69909126,0.00021917,2]
[372446703,1752647446859,-3301.57,0.00021917,2]
[372446706,1752647446868,-500.0,0.00021917,2]
[372446708,1752647446878,-500.0,0.00021917,2]
[372446710,1752647446887,-500.0,0.00021917,2]
[372446712,1752647446896,-500.0,0.00021917,2]
[372446714,1752647446906,-500.0,0.00021917,2]
[372446715,1752647446916,-500.0,0.00021917,2]
[372446718,1752647446925,-500.0,0.00021917,2]
[372446720,1752647446935,-500.0,0.00021917,2]
[372446722,1752647446945,-500.0,0.00021917,2]
[372446724,1752647446955,-500.0,0.00021917,2]
[372446726,1752647446966,-500.0,0.00021917,2]